[Event "Bratislava Centenary Championship"]
[Site "Bratislava"]
[Date "2019.05.10"]
[Round "1.4"]
[White "Schwarz, Dusan"]
[Black "Pacher, Milan"]
[Result "0-1"]
[ECO "E81"]
[WhiteElo "2326"]
[BlackElo "2396"]
[Annotator "RC"]
[PlyCount "82"]
[EventDate "2019.05.10"]
[EventType "tourn"]
[EventCountry "SVK"]
[SourceTitle "playchess.com"]
[Source "ChessBase"]
[SourceQuality "1"]
[TimeControl "40/5400+30:1800+30"]

1. d4 {[%emt 0:00:00]} Nf6 {[%emt 0:00:00]} 2. c4 {[%emt 0:00:00]} g6 {[%emt 0:00:09]} 3. Nc3 {[%emt 0:00:05]} Bg7 {[%emt 0:00:05]} 4. e4 {[%emt 0:00:12]} d6 {[%emt 0:00:05]} 5. f3 {[%emt 0:00:13]} O-O {[%emt 0:00:13]} 6. Nge2 {[%emt 0:00:21]} c5 {[%emt 0:00:22]} 7. d5 {[%emt 0:00:22]} e6 {[%emt 0:00:49]} 8. Ng3 {[%emt 0:00:26]} exd5 {[%emt 0:00:26]} 9. cxd5 {[%emt 0:00:07]} a6 {[%emt 0:00:30]} 10. a4 {[%emt 0:00:28]} h5 {[%emt 0:00:47]} 11. Bg5 {[%emt 0:03:12]} Qb6 {[%emt 0:04:04]} 12. Qd2 {[%emt 0:04:15]} Nh7 {[%emt 0:00:54]} 13. Bh4 {[%emt 0:03:36]} f6 {[%emt 0:09:03]} 14. Nge2 {[%emt 0:10:13]} f5 {[%emt 0:01:35]} 15. exf5 {[%emt 0:05:42]} Bxf5 {[%emt 0:03:25]} 16. a5 {[%emt 0:03:19]} Qc7 {[%emt 0:03:03]} 17. Ng3 {[%emt 0:01:48]} Nd7 {[%emt 0:06:58]} 18. Be2 {[%emt 0:07:37]} Bd4 {[%emt 0:05:03]} 19. Nxf5 {[%emt 0:07:33]} Rxf5 {[%emt 0:01:22]} 20. Bf2 {[%emt 0:11:09]} Bxf2+ {[%emt 0:01:04]} 21. Kxf2 {[%emt 0:00:08]} Ne5 {[%emt 0:00:24]} 22. Rhf1 {[%emt 0:03:40]} Raf8 {[%emt 0:02:07]} 23. Kg1 {[%emt 0:00:43]} Rf4 {[%emt 0:03:42]} 24. Ne4 {[%emt 0:05:02]} Qe7 {[%emt 0:01:39]} 25. Kh1 {[%emt 0:05:02]} h4 {[%emt 0:01:12]} 26. b4 {[%emt 0:06:07]} c4 {[%emt 0:04:40]} 27. Qe3 {[%emt 0:08:47]} Ng4 {[%emt 0:06:30]} 28. Qc3 {[%emt 0:05:45]} Nhf6 {[%emt 0:03:07]} 29. Nxf6+ {[%emt 0:01:49]} R8xf6 {[%emt 0:00:09]} 30. fxg4 {[%emt 0:01:36]} Qxe2 {[%emt 0:00:07]} 31. Qxf6 {[%emt 0:00:24]} Rxf6 {[%emt 0:00:03]} 32. Rxf6 {[%emt 0:00:08]} h3 {[%emt 0:01:00]} 33. Rg1 {[%emt 0:01:22]} hxg2+ {[%emt 0:06:30]} 34. Rxg2 {[%emt 0:00:06]} Qd1+ {[%emt 0:00:04]} 35. Rg1 {[%emt 0:00:05]} Qxd5+ {[%emt 0:00:06]} 36. Rg2 {[%emt 0:00:04]} c3 {[%emt 0:01:24]} 37. Rff2 {[%emt 0:01:15]} Qb3 {[%emt 0:03:37]} 38. h4 {[%emt 0:00:53]} d5 {[%emt 0:00:08]} 39. h5 {[%emt 0:01:00]} d4 {[%emt 0:00:50]} 40. h6 {[%emt 0:03:16]} d3 {[%emt 0:01:11]} 41. Rf6 {[%emt 0:31:22]} c2 {[%emt 0:31:26]} 0-1

[Event "Bratislava Centenary Championship"]
[Site "Bratislava"]
[Date "2019.05.11"]
[Round "2.1"]
[White "Privara, Igor"]
[Black "Kralovic, Andrej"]
[Result "0-1"]
[ECO "C25"]
[WhiteElo "2177"]
[BlackElo "2253"]
[Annotator "NA RC"]
[PlyCount "60"]
[EventDate "2019.05.10"]
[EventType "tourn"]
[EventCountry "SVK"]
[SourceTitle "playchess.com"]
[Source "ChessBase"]
[SourceQuality "1"]
[TimeControl "40/5400+30:1800+30"]

1. e4 {[%emt 0:00:00]} e5 {[%emt 0:00:00]} 2. Nc3 {[%emt 0:00:17]} Nc6 {[%emt 0:00:00]} 3. g3 {[%emt 0:00:45]} Bc5 {[%emt 0:01:01]} 4. Bg2 {[%emt 0:00:18]} Nf6 {[%emt 0:01:11]} 5. Nge2 {[%emt 0:00:16]} O-O {[%emt 0:01:43]} 6. O-O {[%emt 0:00:20]} a6 {[%emt 0:01:08]} 7. Nd5 {[%emt 0:02:47]} Nxd5 8. exd5 {[%emt 0:00:06] C26: Vienna Game: 2...Nf6, sidelines} Nd4 {[%emt 0:04:25]} 9. c3 {[%emt 0:12:53]} (9. Nxd4 Bxd4 10. c3 Ba7 11. d3 d6 12. Be3 Bf5 13. Bxa7 Rxa7 14. f4 exf4 15. Rxf4 Qd7 {½-½ (40) Pytlik,P (2079)-Chovanec,M (2103) Slovakia 2017}) 9... Nxe2+ 10. Qxe2 {[%emt 0:00:07]} d6 {[%emt 0:03:14]} 11. b4 $146 {[%emt 0:05:33]} ({Predecessor:} 11. d3 Bd7 12. Be3 Bxe3 13. Qxe3 Qc8 14. Qe4 Bh3 15. f3 Bxg2 16. Kxg2 {0-1 (39) Jostman,A-Brock,D London,Canada 1995}) 11... Ba7 {[%emt 0:02:45]} 12. Bb2 {[%emt 0:00:17]} Bd7 {[%emt 0:02:31]} 13. Rad1 {[%emt 0:06:54]} Qg5 {[%emt 0:06:00]} 14. c4 {[%emt 0:11:33]} Rae8 {[%emt 0:04:42]} 15. d4 {[%emt 0:07:41]} exd4 {[%emt 0:15:07]} 16. Qd2 {[%emt 0:00:18]} Qxd2 {[%emt 0:15:26]} 17. Rxd2 {[%emt 0:00:08] [#]} d3 $1 {[%emt 0:00:18]} 18. Rc1 {[%emt 0:17:30]} f5 {[%emt 0:19:44]} 19. Bf3 {[%emt 0:05:11]} f4 {[%emt 0:01:08]} 20. g4 {[%emt 0:00:08]} Be3 {[%emt 0:04:13]} 21. fxe3 {[%emt 0:08:06]} fxe3 {[%emt 0:00:19] Discovered Attack} 22. Rxd3 {[%emt 0:00:33]} Rxf3 {[%emt 0:00:21]} 23. Re1 {[%emt 0:10:13]} Bxg4 {[%emt 0:04:01]} 24. Bd4 {[%emt 0:02:47]} e2 {[%emt 0:04:43]} 25. Rxf3 {[%emt 0:00:13]} Bxf3 {[%emt 0:00:06]} 26. Kf2 {[%emt 0:00:25]} Bg4 {[%emt 0:03:59]} 27. Rg1 {[%emt 0:02:11]} Re4 {[%emt 0:00:19]} 28. Ba1 {[%emt 0:01:54]} g6 {[%emt 0:00:25]} 29. Rc1 {[%emt 0:00:07]} Rf4+ {[%emt 0:01:04]} 30. Kg2 $19 {[%emt 0:00:41]} Rf1 {[%emt 0:01:28]} 0-1

[Event "Bratislava Centenary Championship"]
[Site "Bratislava"]
[Date "2019.05.11"]
[Round "2.3"]
[White "Bochnicka, Vladimir"]
[Black "Schwarz, Dusan"]
[Result "1-0"]
[ECO "B70"]
[WhiteElo "2108"]
[BlackElo "2326"]
[Annotator "NA RC"]
[PlyCount "79"]
[EventDate "2019.05.10"]
[EventType "tourn"]
[EventCountry "SVK"]
[SourceTitle "playchess.com"]
[Source "ChessBase"]
[SourceQuality "1"]
[TimeControl "40/5400+30:1800+30"]

1. e4 {[%emt 0:00:00]} c5 {[%emt 0:00:00]} 2. Nf3 {[%emt 0:00:00]} d6 {[%emt 0:00:00]} 3. d4 {[%emt 0:00:00]} cxd4 {[%emt 0:00:07]} 4. Nxd4 {[%emt 0:00:00]} Nf6 {[%emt 0:00:13]} 5. Nc3 {[%emt 0:00:00]} g6 {[%emt 0:00:17]} 6. Be2 {[%emt 0:00:07]} Bg7 {[%emt 0:00:17]} 7. O-O {[%emt 0:00:23]} Nc6 {[%emt 0:00:34]} 8. Nb3 {[%emt 0:00:06]} O-O {[%emt 0:00:32]} 9. Bg5 {[%emt 0:00:09]} Be6 {[%emt 0:02:00]} 10. Kh1 {[%emt 0:00:10]} Na5 {[%emt 0:04:04]} 11. f4 {[%emt 0:12:01]} Nc4 {[%emt 0:00:41]} 12. f5 {[%emt 0:08:19]} Nxb2 {[%emt 0:00:11]} 13. Qc1 {[%emt 0:01:31]} Bc4 {[%emt 0:00:30]} 14. Qxb2 {[%emt 0:01:14] B70: Sicilian Dragon: 6 g3 and 6 Be2 (without a later Be3)} Bxe2 {[%emt 0:00:31]} 15. Nxe2 {[%emt 0:00:02]} Nxe4 {[%emt 0:00:17]} 16. f6 Nxf6 {[%emt 0:04:53]} 17. Bxf6 {[%emt 0:03:54]} exf6 $146 {[%emt 0:02:49]} ({Predecessor:} 17... Bxf6 18. c3 Bg7 19. Rad1 Qb6 20. Qd2 Rac8 21. Rf3 d5 {1-0 (46) Guliyev,N (2526)-Asauskas,H (2357) Warsaw 2005}) 18. Rad1 {[%emt 0:02:52]} f5 {[%emt 0:04:06]} 19. Qc1 {[%emt 0:01:11]} Rc8 {[%emt 0:03:16]} 20. Rf3 {[%emt 0:06:38]} Re8 {[%emt 0:01:26]} 21. Nf4 {[%emt 0:10:35]} Qh4 {[%emt 0:09:04]} 22. Nd5 {[%emt 0:06:09]} Re2 {[%emt 0:10:19]} 23. c3 {[%emt 0:15:23]} (23. Rf4 $1 $11 Qg5 {[#]} 24. Rf2 $1 {[%mdl 512]} Qxc1 25. Nxc1 Rxf2 26. Ne7+ {[%mdl 64] Double Attack} Kf8 27. Nxc8) 23... Rce8 {[%emt 0:09:40]} 24. Nd4 {[%emt 0:04:08]} Rxa2 {[%emt 0:11:34]} 25. Re3 {[%emt 0:04:31]} ({White should play} 25. Qb1 $11 Ra5 26. Rfd3 (26. Qxb7 Bxd4 27. cxd4 Re1+ {[%mdl 64] Double Attack} 28. Rf1 Rxf1+ 29. Rxf1 Qxd4 $15)) 25... Re4 {[%emt 0:08:05]} 26. Rg3 {[%emt 0:10:20]} Be5 {[%emt 0:02:07]} 27. Nxf5 $1 {[%emt 0:01:50]} Qh5 {[%emt 0:08:30]} 28. Rh3 {[%emt 0:06:03]} Qe2 {[%emt 0:01:29]} 29. Nfe7+ {[%emt 0:00:37]} Kf8 {[%emt 0:01:26]} 30. Rg1 {[%emt 0:00:01]} h5 {[%emt 0:03:28]} 31. Qh6+ {[%emt 0:01:33]} Bg7 {[%emt 0:03:30]} 32. Nxg6+ {[%emt 0:01:39]} fxg6 {[%emt 0:00:18]} 33. Qxg6 {[%emt 0:00:26]} Rg4 {[%emt 0:05:00]} 34. Qf5+ {[%emt 0:01:25]} Kg8 {[%emt 0:00:30]} 35. Qc8+ {[%emt 0:00:40]} Kf7 $18 {[%emt 0:02:45]} 36. Qd7+ {[%emt 0:01:50]} Kg6 {[%emt 0:01:32]} 37. Ne7+ {[%emt 0:00:41]} Kh6 {[%emt 0:00:50]} 38. Rxh5+ {[%emt 0:00:55]} Kxh5 {[%emt 0:00:15]} 39. Qf5+ {[%emt 0:00:05]} Kh4 {[%emt 0:00:47]} 40. g3+ {[%emt 0:00:11]} 1-0

[Event "Bratislava Centenary Championship"]
[Site "Bratislava"]
[Date "2019.05.12"]
[Round "3.3"]
[White "Schwarz, Dusan"]
[Black "Janos, Martin"]
[Result "1-0"]
[ECO "D53"]
[WhiteElo "2326"]
[BlackElo "2163"]
[Annotator "ChessBase"]
[PlyCount "103"]
[EventDate "2019.05.10"]
[EventType "tourn"]
[EventCountry "SVK"]
[SourceTitle "playchess.com"]
[Source "ChessBase"]
[SourceQuality "1"]
[TimeControl "40/5400+30:1800+30"]

1. d4 {[%emt 0:00:00]} Nf6 {[%emt 0:18:42]} 2. c4 {[%emt 0:00:00]} e6 {[%emt 0:02:07]} 3. Nc3 {[%emt 0:00:06]} d5 {[%emt 0:01:14]} 4. Bg5 {[%emt 0:00:21]} Be7 {[%emt 0:00:37]} 5. e3 {[%emt 0:00:27]} Nbd7 {[%emt 0:00:22]} 6. Nf3 {[%emt 0:00:30]} c6 {[%emt 0:02:55]} 7. Qc2 {[%emt 0:01:20]} Qa5 {[%emt 0:01:04]} 8. Bd3 {[%emt 0:05:55]} dxc4 {[%emt 0:00:30]} 9. Bxc4 {[%emt 0:00:09]} b5 {[%emt 0:00:07]} 10. Bxf6 {[%emt 0:22:20]} Bxf6 {[%emt 0:01:07]} 11. Bd3 {[%emt 0:01:16]} Bb7 {[%emt 0:00:28]} 12. O-O h6 {[%emt 0:02:29]} 13. Ne4 {[%emt 0:04:29]} Be7 {[%emt 0:00:27]} 14. a3 {[%emt 0:02:47]} O-O {[%emt 0:01:43]} 15. b4 {[%emt 0:06:46]} Qb6 {[%emt 0:00:10]} 16. Nc5 {[%emt 0:00:24]} Nxc5 {[%emt 0:00:16]} 17. bxc5 {[%emt 0:02:19]} Qc7 {[%emt 0:00:19]} 18. Ne5 {[%emt 0:00:31]} Rad8 {[%emt 0:14:28]} 19. f4 {[%emt 0:00:42]} Bf6 {[%emt 0:03:19]} 20. Rf3 {[%emt 0:02:19]} Bc8 {[%emt 0:14:29]} 21. Raf1 {[%emt 0:03:39]} Bd7 {[%emt 0:08:56]} 22. Rh3 {[%emt 0:02:54]} Be8 {[%emt 0:06:07]} 23. Rff3 {[%emt 0:09:21]} Bxe5 {[%emt 0:11:50]} 24. fxe5 {[%emt 0:00:19]} Qe7 {[%emt 0:00:36]} 25. Qf2 {[%emt 0:09:12]} f5 {[%emt 0:03:13]} 26. exf6 {[%emt 0:00:28]} Rxf6 {[%emt 0:00:25]} 27. Rxf6 {[%emt 0:00:14]} Qxf6 {[%emt 0:00:26]} 28. Rf3 {[%emt 0:01:37]} Qe7 {[%emt 0:01:40]} 29. Rf8+ {[%emt 0:00:23]} Qxf8 {[%emt 0:00:07]} 30. Bh7+ {[%emt 0:00:08]} Kxh7 {[%emt 0:00:07]} 31. Qxf8 {[%emt 0:00:07]} Rc8 {[%emt 0:00:11]} 32. Qe7 {[%emt 0:01:37]} a5 {[%emt 0:00:13]} 33. Qxe6 {[%emt 0:00:58]} Ra8 {[%emt 0:00:14]} 34. Qe7 {[%emt 0:02:13]} a4 {[%emt 0:02:29]} 35. Qb7 {[%emt 0:07:29]} Rd8 {[%emt 0:00:13]} 36. Kf2 {[%emt 0:00:14]} Rd5 {[%emt 0:00:52]} 37. Ke2 {[%emt 0:01:16]} Rf5 {[%emt 0:01:11]} 38. e4 {[%emt 0:01:02]} Rf4 {[%emt 0:02:25]} 39. Ke3 {[%emt 0:00:21]} Rf1 {[%emt 0:00:17]} 40. d5 {[%emt 0:02:51]} cxd5 {[%emt 0:00:08]} 41. exd5 {[%emt 0:30:24]} Ra1 {[%emt 0:30:08]} 42. c6 {[%emt 0:02:30]} Rxa3+ {[%emt 0:00:21]} 43. Kd4 {[%emt 0:00:08]} Rb3 {[%emt 0:00:13]} 44. c7 {[%emt 0:01:51]} Bd7 {[%emt 0:00:34]} 45. c8=Q {[%emt 0:00:26]} Bxc8 {[%emt 0:00:07]} 46. Qxc8 {[%emt 0:00:04]} Rb2 {[%emt 0:00:00]} 47. Qf5+ {[%emt 0:00:00]} Kg8 {[%emt 0:00:00]} 48. d6 {[%emt 0:00:00]} Rd2+ {[%emt 0:00:00]} 49. Kc5 {[%emt 0:00:00]} a3 {[%emt 0:00:00]} 50. Qe6+ {[%emt 0:00:00]} Kh7 {[%emt 0:00:00]} 51. Qe4+ {[%emt 0:00:00]} g6 {[%emt 0:00:00]} 52. Qb7+ {[%emt 0:00:00]} 1-0

[Event "Bratislava Centenary Championship"]
[Site "Bratislava"]
[Date "2019.05.12"]
[Round "4.1"]
[White "Privara, Igor"]
[Black "Pacher, Milan"]
[Result "0-1"]
[ECO "B22"]
[WhiteElo "2177"]
[BlackElo "2396"]
[Annotator "NA"]
[PlyCount "122"]
[EventDate "2019.05.10"]
[EventType "tourn"]
[EventCountry "SVK"]
[SourceTitle "playchess.com"]
[Source "ChessBase"]
[SourceQuality "1"]
[TimeControl "40/5400+30:1800+30"]

1. e4 {[%emt 0:00:00]} c5 {[%emt 0:00:00]} 2. c3 {[%emt 0:00:00]} d6 {[%emt 0:00:09]} 3. d4 {[%emt 0:00:00]} Nf6 {[%emt 0:00:05]} 4. dxc5 {[%emt 0:01:24]} Nc6 {[%emt 0:00:07]} 5. cxd6 {[%emt 0:07:18]} Nxe4 {[%emt 0:00:19]} 6. dxe7 {[%emt 0:04:22]} (6. Na3 $11 {remains equal.}) 6... Qxd1+ {[%emt 0:08:45] B22: Sicilian: 2 c3} ({Much weaker is} 6... Bxe7 $6 7. Qxd8+ Bxd8 8. Nd2 $11) ({But not} 6... Qxe7 $6 7. Be3 $11) 7. Kxd1 {[%emt 0:01:10]} Nxf2+ {[%emt 0:00:05]} 8. Ke1 {[%emt 0:00:13]} Nxh1 {[%emt 0:00:07]} 9. exf8=Q+ Kxf8 {[%emt 0:00:06]} (9... Rxf8 $17 10. Nd2 Be6) 10. Nf3 {[%emt 0:02:20]} (10. Bb5 Bg4 11. Nd2 Re8+ 12. Kf1 h5 13. Ngf3 h4 14. Kg1 Ng3 15. hxg3 hxg3 16. Nf1 Re1 17. Nxe1 {1-0 (17) Khimich,A-Skliarov,V (2362) chess.com INT 2018}) 10... Bg4 {[%emt 0:01:59]} 11. Bf4 $146 {[%emt 0:11:00]} ({Predecessor:} 11. Be2 h5 12. Kf1 h4 13. Bf4 Re8 {0-1 (30) Nguyen,G-To,Q Vung Tau 2000}) 11... Re8+ {[%emt 0:03:45]} 12. Be2 {[%emt 0:02:14]} h5 {[%emt 0:00:11]} 13. Nbd2 $1 {[%emt 0:03:46]} h4 {[%emt 0:08:11]} 14. Kf1 {[%emt 0:01:46]} h3 {[%emt 0:01:43]} 15. Re1 {[%emt 0:00:35]} g5 {[%emt 0:04:43]} 16. Bxg5 {[%emt 0:27:01]} Ng3+ {[%emt 0:03:59]} 17. hxg3 {[%emt 0:04:12]} h2 {[%emt 0:03:16]} 18. Nxh2 {[%emt 0:01:58]} Bxe2+ {[%emt 0:07:19]} 19. Rxe2 {[%emt 0:00:22]} Rxe2 {[%emt 0:00:06]} 20. Kxe2 {[%emt 0:00:05]} Rxh2 {[%emt 0:00:06]} 21. Kf2 {[%emt 0:00:16]} Rh1 {[%emt 0:00:19]} 22. Nf1 {[%emt 0:01:03]} Ne5 {[%emt 0:00:28]} 23. Ke2 {[%emt 0:02:02]} Nc4 {[%emt 0:03:03]} 24. b3 {[%emt 0:01:28]} Nd6 {[%emt 0:00:06]} 25. Be3 {[%emt 0:01:41]} Ne4 {[%emt 0:02:02]} 26. Bd4 {[%emt 0:01:46]} f5 {[%emt 0:02:46]} 27. Ne3 {[%emt 0:08:58]} Ra1 {[%emt 0:03:58]} 28. Nxf5 {[%emt 0:05:02]} Rxa2+ {[%emt 0:00:05]} 29. Ke3 {[%emt 0:00:50]} Nd2 {[%emt 0:01:07]} 30. b4 {[%emt 0:01:23]} Nb3 {[%emt 0:01:28]} 31. Be5 {[%emt 0:02:55]} Kf7 {[%emt 0:02:34]} 32. Bb8 {[%emt 0:01:06]} Ke6 {[%emt 0:01:58]} 33. Nd4+ {[%emt 0:04:35]} Nxd4 {[%emt 0:00:05]} 34. Kxd4 {[%emt 0:00:04]} a6 {[%emt 0:04:55]} 35. Kc5 {[%emt 0:01:16]} b5 {[%emt 0:02:37]} 36. Bf4 {[%emt 0:01:37]} Rc2 {[%emt 0:01:26]} 37. Kd4 {[%emt 0:00:26]} Rxg2 {[%emt 0:01:12]} 38. Ke4 {[%emt 0:00:56]} Rg1 {[%emt 0:00:52]} 39. Kd4 {[%emt 0:00:26]} Rd1+ {[%emt 0:00:22]} 40. Ke4 {[%emt 0:00:23]} Rd8 {[%emt 0:00:37]} 41. Be3 {[%emt 0:31:38]} Rg8 {[%emt 0:32:16]} 42. Bf4 {[%emt 0:00:20]} Rh8 {[%emt 0:02:29]} 43. Kd4 {[%emt 0:00:58]} Rc8 {[%emt 0:00:19]} 44. Kd3 {[%emt 0:00:00]} Kf5 {[%emt 0:00:00]} 45. Kd4 {[%emt 0:00:00]} Rc4+ {[%emt 0:00:00]} 46. Kd3 {[%emt 0:00:00]} Kg4 {[%emt 0:00:00]} 47. Bb8 {[%emt 0:00:00]} Kf3 {[%emt 0:00:00]} 48. Be5 {[%emt 0:00:00]} Re4 {[%emt 0:00:00]} 49. Bf4 {[%emt 0:00:00]} Re1 {[%emt 0:00:00]} 50. Kd4 {[%emt 0:00:00]} Rd1+ {[%emt 0:00:00]} 51. Kc5 {[%emt 0:00:00] [#]} Ke4 $1 {[%emt 0:00:00]} 52. c4 $1 {[%emt 0:00:00]} Rh1 {[%emt 0:00:00]} ({Better is} 52... bxc4 $17 53. Kxc4 Rd5) 53. cxb5 {[%emt 0:00:00]} Rh5+ {[%emt 0:00:00]} 54. Kc6 {[%emt 0:00:00]} Rxb5 {[%emt 0:00:00]} 55. Bd6 {[%emt 0:00:00]} Rg5 {[%emt 0:00:00]} 56. Bf4 $11 {[%emt 0:00:00]} Rb5 {[%emt 0:00:00]} 57. Bd6 {[%emt 0:00:00]} Kd4 {[%emt 0:00:00]} 58. Bc5+ {[%emt 0:00:00]} Kc4 {[%emt 0:00:00]} 59. Be7 {[%emt 0:00:31]} Re5 {[%emt 0:00:00]} 60. Kd7 {[%emt 0:01:16]} Re4 {[%emt 0:00:00]} 61. Bc5 {[%emt 0:01:29]} a5 {[%emt 0:00:00]} 0-1

[Event "Bratislava Centenary Championship"]
[Site "Bratislava"]
[Date "2019.05.12"]
[Round "4.2"]
[White "Bochnicka, Vladimir"]
[Black "Kralovic, Andrej"]
[Result "1/2-1/2"]
[ECO "C54"]
[WhiteElo "2108"]
[BlackElo "2253"]
[Annotator "NA"]
[PlyCount "89"]
[EventDate "2019.05.10"]
[EventType "tourn"]
[EventCountry "SVK"]
[SourceTitle "playchess.com"]
[Source "ChessBase"]
[SourceQuality "1"]
[TimeControl "40/5400+30:1800+30"]

1. e4 {[%emt 0:00:00]} e5 {[%emt 0:00:00]} 2. Nf3 {[%emt 0:00:00]} Nc6 {[%emt 0:00:07]} 3. Bc4 {[%emt 0:00:00]} Bc5 {[%emt 0:00:31]} 4. c3 {[%emt 0:00:00]} Nf6 {[%emt 0:00:25]} 5. d3 {[%emt 0:00:04]} d6 {[%emt 0:00:49]} 6. O-O {[%emt 0:00:09]} a6 {[%emt 0:02:52]} 7. Nbd2 {[%emt 0:00:09]} Ba7 {[%emt 0:00:18]} 8. Bb3 {[%emt 0:00:14]} O-O {[%emt 0:01:49]} 9. h3 {[%emt 0:00:10]} Nh5 $14 {[%emt 0:06:29]} 10. Nxe5 {[%emt 0:15:04]} Nxe5 {[%emt 0:02:06]} 11. Qxh5 {[%emt 0:00:09]} Nxd3 {[%emt 0:00:30]} 12. Nf3 {[%emt 0:02:06]} Qf6 {[%emt 0:15:48]} 13. Bg5 {[%emt 0:12:09]} Qg6 {[%emt 0:10:02]} 14. Qxg6 {[%emt 0:00:57]} hxg6 {[%emt 0:00:09]} 15. Rad1 {[%emt 0:00:13]} Nc5 {[%emt 0:00:33]} 16. Bc2 {[%emt 0:00:23]} Be6 {[%emt 0:03:06]} 17. Nd4 {[%emt 0:03:11]} Bc4 {[%emt 0:04:40]} 18. Rfe1 {[%emt 0:00:08]} f6 {[%emt 0:00:23]} 19. Be3 {[%emt 0:01:46]} Rfe8 {[%emt 0:02:19]} 20. f3 {[%emt 0:01:02]} Re7 {[%emt 0:06:47]} 21. Nb3 {[%emt 0:14:47]} Nxb3 {[%emt 0:03:30]} 22. Bxb3 {[%emt 0:00:24]} Bxb3 {[%emt 0:02:21]} 23. axb3 {[%emt 0:00:04]} Bxe3+ {[%emt 0:01:24]} 24. Rxe3 {[%emt 0:00:02]} Kf7 {[%emt 0:06:37]} 25. Kf2 {[%emt 0:00:49]} Rae8 {[%emt 0:00:23]} 26. Rde1 {[%emt 0:01:13]} Re5 {[%emt 0:00:26]} 27. Ke2 {[%emt 0:08:51]} Rg5 {[%emt 0:02:10]} 28. Rg1 {[%emt 0:00:30]} Rh8 {[%emt 0:00:58]} 29. f4 {[%emt 0:00:15]} Rb5 {[%emt 0:00:43]} 30. c4 {[%emt 0:00:28]} Ra5 {[%emt 0:04:06]} 31. Kd3 {[%emt 0:00:30]} g5 {[%emt 0:07:48]} 32. b4 {[%emt 0:10:09]} gxf4 {[%emt 0:00:36]} 33. bxa5 {[%emt 0:00:10]} fxe3 {[%emt 0:00:11]} 34. Kxe3 {[%emt 0:00:01]} Ke6 {[%emt 0:01:30]} 35. Rd1 {[%emt 0:02:12]} Rb8 {[%emt 0:07:27]} 36. Rd3 {[%emt 0:02:31]} b5 {[%emt 0:03:59]} 37. Rb3 {[%emt 0:02:14]} c5 {[%emt 0:00:45]} 38. cxb5 {[%emt 0:06:28]} axb5 {[%emt 0:00:24]} 39. Ra3 {[%emt 0:00:14]} Ra8 {[%emt 0:01:34]} 40. a6 {[%emt 0:00:06]} Ra7 {[%emt 0:01:00]} 41. Ra5 {[%emt 0:30:39]} b4 {[%emt 0:31:31]} 42. Kd3 {[%emt 0:01:28]} Kd7 {[%emt 0:01:16]} 43. Kc4 {[%emt 0:01:57]} Kc6 {[%emt 0:00:25]} 44. Ra1 {[%emt 0:00:18]} Kb6 {[%emt 0:00:00]} 45. Rd1 {[%emt 0:00:00]} 1/2-1/2

[Event "Bratislava Centenary Championship"]
[Site "Bratislava"]
[Date "2019.05.12"]
[Round "4.3"]
[White "Janos, Martin"]
[Black "Oprea, Erik"]
[Result "1/2-1/2"]
[ECO "C05"]
[WhiteElo "2163"]
[BlackElo "2127"]
[Annotator "NA"]
[PlyCount "89"]
[EventDate "2019.05.10"]
[EventType "tourn"]
[EventCountry "SVK"]
[SourceTitle "playchess.com"]
[Source "ChessBase"]
[SourceQuality "1"]
[TimeControl "40/5400+30:1800+30"]

1. e4 {[%emt 0:04:15]} e6 {[%emt 0:00:00]} 2. d4 {[%emt 0:00:40]} d5 {[%emt 0:00:00]} 3. Nd2 {[%emt 0:00:10]} Nf6 {[%emt 0:00:04]} 4. e5 {[%emt 0:00:26]} Nfd7 {[%emt 0:00:09]} 5. Bd3 {[%emt 0:00:53]} c5 {[%emt 0:00:19]} 6. c3 {[%emt 0:01:04]} Nc6 {[%emt 0:00:17]} 7. Ne2 {[%emt 0:00:30]} Be7 {[%emt 0:00:45]} 8. Nf3 {[%emt 0:00:31]} Rb8 {[%emt 0:01:34]} 9. a3 {[%emt 0:02:08]} c4 {[%emt 0:01:23]} 10. Bc2 {[%emt 0:01:05]} b5 {[%emt 0:00:22]} 11. Nf4 {[%emt 0:01:12]} g6 {[%emt 0:02:36]} 12. h4 {[%emt 0:00:19]} a5 {[%emt 0:02:37] [#]} 13. Ng5 $16 {[%emt 0:01:00]} Nf8 {[%emt 0:06:44]} 14. Qf3 {[%emt 0:03:51]} Bxg5 {[%emt 0:02:12]} 15. hxg5 {[%emt 0:00:10]} Bb7 {[%emt 0:05:02]} 16. Qg4 {[%emt 0:03:26]} Ke7 {[%emt 0:06:24]} 17. Ne2 {[%emt 0:01:34]} Nd7 {[%emt 0:00:51]} 18. f4 {[%emt 0:01:43]} Qf8 {[%emt 0:01:44]} 19. Be3 {[%emt 0:07:35]} Kd8 {[%emt 0:00:16]} 20. Qh4 {[%emt 0:01:14]} Kc7 {[%emt 0:00:51]} 21. g4 {[%emt 0:00:52]} Ra8 {[%emt 0:06:46]} 22. f5 {[%emt 0:01:27]} exf5 {[%emt 0:00:49]} 23. gxf5 {[%emt 0:00:18]} Qe8 {[%emt 0:02:59]} 24. Kd2 {[%emt 0:02:35]} gxf5 {[%emt 0:02:48]} 25. Rhf1 {[%emt 0:07:11]} Ne7 {[%emt 0:00:31]} 26. Qh2 {[%emt 0:00:43]} Kb6 {[%emt 0:01:11]} 27. Ng3 {[%emt 0:00:37]} Nf8 {[%emt 0:01:28]} 28. Bxf5 {[%emt 0:04:59]} Ra6 {[%emt 0:07:54]} 29. Bc2 {[%emt 0:02:29]} Ka7 {[%emt 0:00:41]} 30. Rf2 {[%emt 0:02:06]} Bc8 {[%emt 0:00:20]} 31. Nh5 {[%emt 0:01:58]} Be6 {[%emt 0:05:53]} 32. Raf1 {[%emt 0:01:26]} Nfg6 {[%emt 0:06:40]} 33. Ng7 {[%emt 0:00:51]} Qg8 {[%emt 0:02:35]} 34. Nxe6 {[%emt 0:01:05]} fxe6 {[%emt 0:00:15]} 35. Rf7 {[%emt 0:00:25]} Ka8 {[%emt 0:04:39]} 36. R1f6 {[%emt 0:00:14]} b4 {[%emt 0:02:53]} 37. Qh3 {[%emt 0:07:49]} bxc3+ {[%emt 0:00:16]} 38. bxc3 {[%emt 0:00:01]} Rb6 {[%emt 0:01:15]} 39. Rxe6 {[%emt 0:00:31]} Qc8 {[%emt 0:00:46]} 40. Bf5 {[%emt 0:04:52]} Rb2+ {[%emt 0:13:28]} 41. Ke1 {[%emt 0:31:43]} Nxf5 {[%emt 0:37:17]} 42. Qxf5 {[%emt 0:02:23]} Nh4 {[%emt 0:01:19]} 43. Qf6 {[%emt 0:03:48]} Ng2+ {[%emt 0:00:19]} 44. Kf1 {[%emt 0:00:35]} Nxe3+ {[%emt 0:00:08]} 45. Ke1 1/2-1/2